Workbook

Sheet No Damping
A1: The Spring: Simple Harmonic Motion
B3: This DIGMath module lets you investigate
C4: simple harmonic motion:
B5: the behavior of a simple spring
B6: with a bob of a given mass hanging from it
B7: with an initial displacement y0
A9: What is the initial displacement y0 (0 to 200 cm)?
C10: =10*D10 -> 50 | D10: 5
A13: What is the mass m (25-500 gms)?
C14: =D14*25 -> 300 | D14: 12
A17: What is the spring constant k (1 - 10 Newton/cm)?
C18: =D18 -> 5 | D18: 5
I19: Now trace a point along the path of the weight on the spring.
B20: The period of the oscillation = | E20: =2*PI()*SQRT(L/32) -> 7.853981634 | F20: seconds | K20: 206
I21: t = | J21: =K20*dt -> 41.2 | K21: seconds
A22: Click each item below for suggestions and investigations | I22: y = | J22: =LOOKUP(J$21+0.001,Sheet2!C3:C603,Sheet2!D3:D603) -> 28.50 | K22: cm above/below the equilibrium point
D23: Item 1 | I23: v = | J23: =LOOKUP(J$21,Sheet2!C3:C602,Sheet2!E3:E602) -> 5.35 | K23: cm/sec
D24: Item 2
D25: Item 3
D26: Item 4
D27: Item 5
A30: To access/download all the DIGMath Apps for Calculus
A31: Click this link: | C31: DIGMath for Calculus
A33: Created by: Sheldon P. Gordon
A34: Farmingdale State College
A35: Development of this module was supported by the
A36: NSF's Division of Undergraduate Education
A37: under grants DUE-0310123 and DUE-0442160.

Sheet Damping
A1: Motion of a Spring with Damping
B3: This DIGMath module lets you investigate
C4: the motion of a spring
B5: with a bob of a given mass hanging from it,
B6: with an initial displacement y0
B7: and with damping that retards the motion
A9: What is the initial displacement y0 (0 to 200 cm)?
C10: =10*D10 -> 110 | D10: 11
A13: What is the mass m (25-500 gms)?
C14: =D14*25 -> 175 | D14: 7 | E14: 7
A17: What is the spring constant k (1 - 10 Newton/cm)?
C18: =D18 -> 5 | D18: 5
H19: Now trace a point along the path of the weight on the spring.
J20: 120
A21: What is the viscous damping coefficient c (0 - 500 gms/sec)? | H21: t = | I21: =J20*dtt -> 12.0 | J21: seconds
C22: =D22*25 -> 175 | D22: 7 | H22: y = | I22: =LOOKUP(I$21+0.001,Sheet2!I3:I603,Sheet2!M3:M603) -> 0.33 | J22: cm above/below the equilibrium point
H23: v = | I23: =LOOKUP(I$21,Sheet2!I3:I602,Sheet2!N3:N602) -> -0.15 | J23: cm/sec
A24: This combination produces | D24: =IF(case=1,"critical damping",IF(case=2,"over-damping","under-damping")) -> over-damping
A27: Click each item below for suggestions and investigations
D28: Item 1
D29: Item 2
D30: Item 3
D31: Item 4
D32: Item 5
D33: Item 6
A36: To access/download all the DIGMath Apps for Calculus
A37: Click this link: | C37: DIGMath for Calculus
A39: Created by: Sheldon P. Gordon
A40: Farmingdale State College
A41: Development of this module was supported by the
A42: NSF's Division of Undergraduate Education
A43: under grants DUE-0310123 and DUE-0442160.

Sheet Sheet2
C1: t | D1: y | E1: v | I1: t | J1: y1 | K1: y2 | L1: y3 | M1: y | N1: v
C3: 0 | D3: =y0*COS(SQRT(k/m)*t) -> 50 | E3: =(D4-D3)/dq -> -0.08332870381 | I3: 0 | J3: =(H$27+H$28*tt)*EXP(-omega0*tt) -> 110 | K3: =H$31*EXP(gamma2*tt)+H$32*EXP(gamma2*tt) -> 110 | L3: =EXP(-cc/2/mm*tt)*(H$36*COS(SQRT(-Disc)/2/mm*tt)+H$37*SIN(SQRT(-Disc)/2/mm*tt)) ->  | M3: =IF(case=1,J3,IF(case=2,K3,L3)) -> 110 | N3: =(M4-M3)/dqq -> -52.06096555 | O3: 0
A4: sqrt(g/L) = | B4: =SQRT(32/L) -> 0.8 | C4: =C3+dt -> 0.2 | D4: 49.98333426 | E4: -0.249930562 | G4: sqrt(k/m) = | H4: =SQRT(kk/mm) -> 0.1690308509 | I4: =I3+dtt -> 0.1 | J4: 113.5641011 | K4: 104.7939034 | M4: 104.7939034 | N4: -49.59701634 | O4: 0
A5: period = | B5: =2*PI()*omega -> 5.026548246 | C5: 0.4 | D5: 49.93334815 | E5: -0.4163658091 | I5: 0.2 | J5: 116.9778237 | K5: 99.83420181 | M5: 99.83420181 | N5: -47.24968129 | O5: 0
C6: 0.6 | D6: 49.85007499 | E6: -0.5825234945 | I6: 0.3 | J6: 120.2452074 | K6: 95.10923368 | M6: 95.10923368 | N6: -45.01344126 | O6: 0
C7: 0.8 | D7: 49.73357029 | E7: -0.7482928524 | G7: gamma = | H7: =cc/2/SQRT(mm*kk) -> 2.958039892 | I7: 0.4 | J7: 123.3701989 | K7: 90.60788956 | M7: 90.60788956 | N7: -42.88303834 | O7: 0
C8: 1 | D8: 49.58391172 | E8: -0.9135633761 | G8: disc= | H8: =cc^2-4*mm*kk -> 27125 | I8: 0.5 | J8: 126.3566535 | K8: 86.31958572 | M8: 86.31958572 | N8: -40.85346344 | O8: 0
C9: 1.2 | D9: 49.40119904 | E9: -1.078224891 | I9: 0.6 | J9: 129.2083373 | K9: 82.23423938 | M9: 82.23423938 | N9: -38.91994458 | O9: 0
C10: 1.4 | D10: 49.18555406 | E10: -1.24216763 | G10: v0 = | H10: 0 | I10: 0.7 | J10: 131.9289292 | K10: 78.34224492 | M10: 78.34224492 | N10: -37.07793558 | O10: 0
C11: 1.6 | D11: 48.93712054 | E11: -1.405282303 | I11: 0.8 | J11: 134.5220225 | K11: 74.63445136 | M11: 74.63445136 | N11: -35.32310547 | O11: 0
A12: delta t = | B12: 0.2 | C12: 1.8 | D12: 48.65606408 | E12: -1.567460173 | G12: delta t = | H12: 0.1 | I12: 0.9 | J12: 136.9911269 | K12: 71.10214082 | M12: 71.10214082 | N12: -33.65132822 | O12: 0
C13: 2 | D13: 48.34257204 | E13: -1.728593128 | I13: 1 | J13: 139.3396702 | K13: 67.73700799 | M13: 67.73700799 | N13: -32.05867309 | O13: 0
C14: 2.2 | D14: 47.99685342 | E14: -1.888573751 | G14: gamma1 = | H14: =(-kk+SQRT(cc^2-4*mm*kk))/2/mm -> 0.4562762598 | I14: 1.1 | J14: 141.5710004 | K14: 64.53114069 | M14: 64.53114069 | N14: -30.54139538 | O14: 0
C15: 2.4 | D15: 47.61913867 | E15: -2.047295395 | G15: gamma2 = | H15: =(-kk-SQRT(cc^2-4*mm*kk))/2/mm -> -0.4848476883 | I15: 1.2 | J15: 143.6883868 | K15: 61.47700115 | M15: 61.47700115 | N15: -29.09592763 | O15: 0
C16: 2.6 | D16: 47.20967959 | E16: -2.204652251 | I16: 1.3 | J16: 145.6950221 | K16: 58.56740838 | M16: 58.56740838 | N16: -27.71887119 | O16: 0
C17: 2.8 | D17: 46.76874914 | E17: -2.360539421 | I17: 1.4 | J17: 147.5940243 | K17: 55.79552127 | M17: 55.79552127 | N17: -26.40698828 | O17: 0
A18: Left extreme | C18: 3 | D18: 46.29664125 | E18: -2.514852985 | G18: Left extreme | I18: 1.5 | J18: 149.3884376 | K18: 53.15482244 | M18: 53.15482244 | N18: -25.15719436 | O18: 0
A19: =0 -> 0 | B19: =L -> 50 | C19: 3.2 | D19: 45.79367065 | E19: -2.667490074 | G19: =0 -> 0 | H19: =LL -> 110 | I19: 1.6 | J19: 151.0812345 | K19: 50.639103 | M19: 50.639103 | N19: -23.96655088 | O19: 0
C20: 3.4 | D20: 45.26017264 | E20: -2.818348935 | G20: =L3 ->  | H20: =M3 -> 110 | I20: 1.7 | J20: 152.6753174 | K20: 48.24244791 | M20: 48.24244791 | N20: -22.83225835 | O20: 0
A21: Right extreme | C21: 3.6 | D21: 44.69650285 | E21: -2.967329001 | G21: Right extreme | I21: 1.8 | J21: 154.1735198 | K21: 45.95922208 | M21: 45.95922208 | N21: -21.75164979 | O21: 0
A22: =0 -> 0 | B22: =L -> 50 | C22: 3.8 | D22: 44.10303705 | E22: -3.114330957 | G22: =0 -> 0 | H22: =LL -> 110 | I22: 1.9 | J22: 155.578608 | K22: 43.7840571 | M22: 43.7840571 | N22: -20.72218444 | O22: 0
C23: 4 | D23: 43.48017086 | E23: -3.259256808 | G23: =-L3 ->  | H23: =M3 -> 110 | I23: 2 | J23: 156.8932824 | K23: 41.71183865 | M23: 41.71183865 | N23: -19.74144178 | O23: 0
C24: 4.2 | D24: 42.8283195 | E24: -3.402009942 | I24: 2.1 | J24: 158.1201792 | K24: 39.73769448 | M24: 39.73769448 | N24: -18.80711585 | O24: 0
C25: 4.4 | D25: 42.14791751 | E25: -3.542495196 | I25: 2.2 | J25: 159.2618716 | K25: 37.85698289 | M25: 37.85698289 | N25: -17.91700984 | O25: 0
C26: 4.6 | D26: 41.43941847 | E26: -3.680618917 | G26: 1. Critical damping | I26: 2.3 | J26: 160.320871 | K26: 36.06528191 | M26: 36.06528191 | N26: -17.0690309 | O26: 0
C27: 4.8 | D27: 40.70329469 | E27: -3.816289028 | G27: A = | H27: =yy0 -> 110 | I27: 2.4 | J27: 161.2996288 | K27: 34.35837882 | M27: 34.35837882 | N27: -16.26118524 | O27: 0
C28: 5 | D28: 39.94003688 | E28: -3.949415088 | G28: B = | H28: =v0+cc/2/mm*yy0 -> 55 | I28: 2.5 | J28: 162.2005374 | K28: 32.73226029 | M28: 32.73226029 | N28: -15.49157341 | O28: 0
C29: 5.2 | D29: 39.15015387 | E29: -4.079908351 | I29: 2.6 | J29: 163.0259314 | K29: 31.18310295 | M29: 31.18310295 | N29: -14.7583859 | O29: 0
C30: 5.4 | D30: 38.3341722 | E30: -4.207681827 | G30: 2. Over-damped | I30: 2.7 | J30: 163.7780891 | K30: 29.70726436 | M30: 29.70726436 | N30: -14.05989879 | O30: 0
C31: 5.6 | D31: 37.49263583 | E31: -4.332650337 | G31: A = | H31: =(v0-gamma2*yy0)/(gamma1-gamma2) -> 56.66973604 | I31: 2.8 | J31: 164.4592338 | K31: 28.30127448 | M31: 28.30127448 | N31: -13.39446978 | O31: 0
C32: 5.8 | D32: 36.62610576 | E32: -4.454730573 | G32: B = | H32: =yy0-H31 -> 53.33026396 | I32: 2.9 | J32: 165.0715345 | K32: 26.96182751 | M32: 26.96182751 | N32: -12.7605343 | O32: 0
C33: 6 | D33: 35.73515965 | E33: -4.573841155 | I33: 3 | J33: 165.6171078 | K33: 25.68577408 | M33: 25.68577408 | N33: -12.15660181 | O33: 0
C34: 6.2 | D34: 34.82039142 | E34: -4.689902678 | I34: 3.1 | J34: 166.0980185 | K34: 24.4701139 | M34: 24.4701139 | N34: -11.58125233 | O34: 0
C35: 6.4 | D35: 33.88241088 | E35: -4.802837773 | G35: 3. Under-damped | I35: 3.2 | J35: 166.5162809 | K35: 23.31198866 | M35: 23.31198866 | N35: -11.03313308 | O35: 0
C36: 6.6 | D36: 32.92184333 | E36: -4.912571154 | G36: A = | H36: =yy0 -> 110 | I36: 3.3 | J36: 166.87386 | K36: 22.20867535 | M36: 22.20867535 | N36: -10.5109553 | O36: 0
C37: 6.8 | D37: 31.9393291 | E37: -5.01902967 | G37: B = | H37: =1/H39*(gamma*omega0*yy0+v0) ->  | I37: 3.4 | J37: 167.1726725 | K37: 21.15757982 | M37: 21.15757982 | N37: -10.01349122 | O37: 0
C38: 7 | D38: 30.93552316 | E38: -5.122142352 | I38: 3.5 | J38: 167.4145881 | K38: 20.1562307 | M38: 20.1562307 | N38: -9.539571202 | O38: 0
C39: 7.2 | D39: 29.91109469 | E39: -5.221840462 | G39: omegaD = | H39: =omega0*SQRT(1-gamma^2) ->  | I39: 3.6 | J39: 167.6014299 | K39: 19.20227358 | M39: 19.20227358 | N39: -9.088080941 | O39: 0
C40: 7.4 | D40: 28.8667266 | E40: -5.318057538 | G40: gamma = | I40: 3.7 | J40: 167.7349763 | K40: 18.29346549 | M40: 18.29346549 | N40: -8.657958878 | O40: 0
C41: 7.6 | D41: 27.80311509 | E41: -5.41072944 | I41: 3.8 | J41: 167.8169613 | K41: 17.4276696 | M41: 17.4276696 | N41: -8.248193697 | O41: 0
C42: 7.8 | D42: 26.7209692 | E42: -5.499794389 | I42: 3.9 | J42: 167.8490758 | K42: 16.60285023 | M42: 16.60285023 | N42: -7.857821945 | O42: 0
C43: 8 | D43: 25.62101033 | E43: -5.585193013 | G43: case = | H43: =IF(Disc<0,3,IF(Disc>0,2,1)) -> 2 | I43: 4 | J43: 167.8329687 | K43: 15.81706804 | M43: 15.81706804 | N43: -7.485925765 | O43: 0
C44: 8.2 | D44: 24.50397172 | E44: -5.666868381 | I44: 4.1 | J44: 167.7702473 | K44: 15.06847546 | M44: 15.06847546 | N44: -7.131630744 | O44: 0
C45: 8.4 | D45: 23.37059805 | E45: -5.744766046 | I45: 4.2 | J45: 167.6624787 | K45: 14.35531239 | M45: 14.35531239 | N45: -6.794103851 | O45: 0
C46: 8.6 | D46: 22.22164484 | E46: -5.818834081 | I46: 4.3 | J46: 167.5111908 | K46: 13.675902 | M46: 13.675902 | N46: -6.472551481 | O46: 0
C47: 8.8 | D47: 21.05787802 | E47: -5.889023108 | I47: 4.4 | J47: 167.3178725 | K47: 13.02864685 | M47: 13.02864685 | N47: -6.16621759 | O47: 0
C48: 9 | D48: 19.8800734 | E48: -5.955286338 | I48: 4.5 | J48: 167.0839754 | K48: 12.41202509 | M48: 12.41202509 | N48: -5.874381916 | O48: 0
C49: 9.2 | D49: 18.68901613 | E49: -6.017579597 | I49: 4.6 | J49: 166.8109141 | K49: 11.8245869 | M49: 11.8245869 | N49: -5.596358285 | O49: 0
C50: 9.4 | D50: 17.48550021 | E50: -6.07586136 | I50: 4.7 | J50: 166.5000671 | K50: 11.26495107 | M50: 11.26495107 | N50: -5.331492998 | O50: 0
C51: 9.6 | D51: 16.27032794 | E51: -6.130092774 | I51: 4.8 | J51: 166.1527777 | K51: 10.73180177 | M51: 10.73180177 | N51: -5.079163295 | O51: 0
B52: t3 | C52: 9.8 | D52: 15.04430939 | E52: -6.180237686 | H52: t3 | I52: 4.9 | J52: 165.770355 | K52: 10.22388544 | M52: 10.22388544 | N52: -4.83877589 | O52: 0
B53: =L3 ->  | C53: 10 | D53: 13.80826185 | E53: -6.226262668 | H53: =S3 -> 0 | I53: 5 | J53: 165.3540743 | K53: 9.740007855 | M53: 9.740007855 | N53: -4.609765576 | O53: 0
C54: 10.2 | D54: 12.56300932 | E54: -6.268137039 | I54: 5.1 | J54: 164.9051779 | K54: 9.279031297 | M54: 9.279031297 | N54: -4.391593897 | O54: 0
C55: 10.4 | D55: 11.30938191 | E55: -6.305832885 | I55: 5.2 | J55: 164.4248762 | K55: 8.839871907 | M55: 8.839871907 | N55: -4.18374788 | O55: 0
C56: 10.6 | D56: 10.04821533 | E56: -6.339325075 | I56: 5.3 | J56: 163.914348 | K56: 8.421497119 | M56: 8.421497119 | N56: -3.985738831 | O56: 0
C57: 10.8 | D57: 8.780350315 | E57: -6.368591284 | I57: 5.4 | J57: 163.3747416 | K57: 8.022923236 | M57: 8.022923236 | N57: -3.797101184 | O57: 0
C58: 11 | D58: 7.506632058 | E58: -6.393612 | I58: 5.5 | J58: 162.8071751 | K58: 7.643213118 | M58: 7.643213118 | N58: -3.617391408 | O58: 0
C59: 11.2 | D59: 6.227909658 | E59: -6.414370546 | I59: 5.6 | J59: 162.2127373 | K59: 7.281473977 | M59: 7.281473977 | N59: -3.446186963 | O59: 0
C60: 11.4 | D60: 4.945035549 | E60: -6.430853082 | I60: 5.7 | J60: 161.5924886 | K60: 6.936855281 | M60: 6.936855281 | N60: -3.283085307 | O60: 0
C61: 11.6 | D61: 3.658864933 | E61: -6.443048621 | I61: 5.8 | J61: 160.9474611 | K61: 6.60854675 | M61: 6.60854675 | N61: -3.127702952 | O61: 0
C62: 11.8 | D62: 2.370255208 | E62: -6.450949033 | I62: 5.9 | J62: 160.2786598 | K62: 6.295776455 | M62: 6.295776455 | N62: -2.979674556 | O62: 0
C63: 12 | D63: 1.080065402 | E63: -6.454549051 | I63: 6 | J63: 159.5870627 | K63: 5.997808999 | M63: 5.997808999 | N63: -2.83865207 | O63: 0
B64: t4 | C64: 12.2 | D64: -0.2108444083 | E64: -6.453846275 | H64: t4 | I64: 6.1 | J64: 158.873622 | K64: 5.713943792 | M64: 5.713943792 | N64: -2.704303918 | O64: 0
B65: =L4 ->  | C65: 12.4 | D65: -1.501613663 | E65: -6.448841174 | H65: =S4 -> 0 | I65: 6.2 | J65: 158.1392642 | K65: 5.4435134 | M65: 5.4435134 | N65: -2.576314215 | O65: 0
C66: 12.6 | D66: -2.791381898 | E66: -6.439537085 | I66: 6.3 | J66: 157.3848908 | K66: 5.185881979 | M66: 5.185881979 | N66: -2.454382028 | O66: 0
C67: 12.8 | D67: =y0*COS(SQRT(k/m)*t) -> -4.079289315 | E67: =(D68-D67)/dq -> -6.425940209 | I67: 6.4 | J67: =(H$27+H$28*tt)*EXP(-omega0*tt) -> 156.6113792 | K67: =H$31*EXP(gamma2*tt)+H$32*EXP(gamma2*tt) -> 4.940443776 | L67: =EXP(-cc/2/mm*tt)*(H$36*COS(SQRT(-Disc)/2/mm*tt)+H$37*SIN(SQRT(-Disc)/2/mm*tt)) ->  | M67: =IF(case=1,J67,IF(case=2,K67,L67)) -> 4.940443776 | N67: =(M68-M67)/dqq -> -2.338220666 | O67: 0
C68: =C67+dt -> 13 | D68: -5.364477357 | E68: -6.408059611 | I68: =I67+dtt -> 6.5 | J68: 155.8195828 | K68: 4.70662171 | M68: 4.70662171 | N68: -2.227557006 | O68: 0
C69: 13.2 | D69: -6.646089279 | E69: -6.385907211 | I69: 6.6 | J69: 155.0103319 | K69: 4.483866009 | M69: 4.483866009 | N69: -2.122130853 | O69: 0
C70: 13.4 | D70: -7.923270722 | E70: -6.359497776 | I70: 6.7 | J70: 154.1844341 | K70: 4.271652924 | M70: 4.271652924 | N70: -2.021694325 | O70: 0
C71: 13.6 | D71: -9.195170277 | E71: -6.328848911 | I71: 6.8 | J71: 153.3426746 | K71: 4.069483491 | M71: 4.069483491 | N71: -1.926011271 | O71: 0
C72: 13.8 | D72: -10.46094006 | E72: -6.293981048 | I72: 6.9 | J72: 152.4858173 | K72: 3.876882364 | M72: 3.876882364 | N72: -1.83485672 | O72: 0
C73: 14 | D73: -11.71973627 | E73: -6.254917431 | I73: 7 | J73: 151.6146047 | K73: 3.693396692 | M73: 3.693396692 | N73: -1.748016345 | O73: 0
C74: 14.2 | D74: -12.97071975 | E74: -6.2116841 | I74: 7.1 | J74: 150.7297589 | K74: 3.518595058 | M74: 3.518595058 | N74: -1.665285964 | O74: 0
B75: t5 | C75: 14.4 | D75: -14.21305657 | E75: -6.164309877 | H75: t5 | I75: 7.2 | J75: 149.8319814 | K75: 3.352066461 | M75: 3.352066461 | N75: -1.58647106 | O75: 0
B76: =L5 ->  | C76: 14.6 | D76: -15.44591855 | E76: -6.112826342 | H76: =S5 -> 0 | I76: 7.3 | J76: 148.9219545 | K76: 3.193419355 | M76: 3.193419355 | N76: -1.511386319 | O76: 0
C77: 14.8 | D77: -16.66848382 | E77: -6.057267816 | I77: 7.4 | J77: 148.000341 | K77: 3.042280723 | M77: 3.042280723 | N77: -1.439855199 | O77: 0
C78: 15 | D78: -17.87993738 | E78: -5.997671336 | I78: 7.5 | J78: 147.0677848 | K78: 2.898295203 | M78: 2.898295203 | N78: -1.371709516 | O78: 0
C79: 15.2 | D79: -19.07947165 | E79: -5.93407663 | I79: 7.6 | J79: 146.1249118 | K79: 2.761124252 | M79: 2.761124252 | N79: -1.306789041 | O79: 0
C80: 15.4 | D80: -20.26628698 | E80: -5.866526093 | I80: 7.7 | J80: 145.1723299 | K80: 2.630445348 | M80: 2.630445348 | N80: -1.244941133 | O80: 0
C81: 15.6 | D81: -21.43959219 | E81: -5.795064756 | I81: 7.8 | J81: 144.2106292 | K81: 2.505951234 | M81: 2.505951234 | N81: -1.186020372 | O81: 0
C82: 15.8 | D82: -22.59860515 | E82: -5.719740257 | I82: 7.9 | J82: 143.2403831 | K82: 2.387349197 | M82: 2.387349197 | N82: -1.129888221 | O82: 0
B83: t6 | C83: 16 | D83: -23.7425532 | E83: -5.64060281 | H83: t6 | I83: 8 | J83: 142.2621483 | K83: 2.274360375 | M83: 2.274360375 | N83: -1.076412701 | O83: 0
B84: =L6 ->  | C84: 16.2 | D84: -24.87067376 | E84: -5.55770517 | H84: =S6 -> 0 | I84: 8.1 | J84: 141.2764652 | K84: 2.166719105 | M84: 2.166719105 | N84: -1.025468079 | O84: 0
C85: 16.4 | D85: -25.98221479 | E85: -5.471102598 | I85: 8.2 | J85: 140.2838581 | K85: 2.064172297 | M85: 2.064172297 | N85: -0.9769345714 | O85: 0
C86: 16.6 | D86: -27.07643531 | E86: -5.380852828 | I86: 8.3 | J86: 139.2848362 | K86: 1.96647884 | M86: 1.96647884 | N86: -0.9306980649 | O86: 0
C87: 16.8 | D87: -28.15260588 | E87: -5.287016022 | I87: 8.4 | J87: 138.2798933 | K87: 1.873409033 | M87: 1.873409033 | N87: -0.8866498468 | O87: 0
C88: 17 | D88: -29.21000908 | E88: -5.189654734 | I88: 8.5 | J88: 137.2695086 | K88: 1.784744049 | M88: 1.784744049 | N88: -0.8446863495 | O88: 0
B89: t7 | C89: 17.2 | D89: -30.24794003 | E89: -5.088833869 | H89: t7 | I89: 8.6 | J89: 136.2541468 | K89: 1.700275414 | M89: 1.700275414 | N89: -0.8047089068 | O89: 0
B90: =L7 ->  | C90: 17.4 | D90: -31.2657068 | E90: -4.984620636 | H90: =S7 -> 0 | I90: 8.7 | J90: 135.2342586 | K90: 1.619804523 | M90: 1.619804523 | N90: -0.7666235225 | O90: 0
C91: 17.6 | D91: -32.26263093 | E91: -4.877084507 | I91: 8.8 | J91: 134.210281 | K91: 1.543142171 | M91: 1.543142171 | N91: -0.7303406491 | O91: 0
C92: 17.8 | D92: -33.23804783 | E92: -4.766297169 | I92: 8.9 | J92: 133.1826376 | K92: 1.470108106 | M92: 1.470108106 | N92: -0.6957749769 | O92: 0
C93: 18 | D93: -34.19130727 | E93: -4.652332477 | I93: 9 | J93: 132.1517389 | K93: 1.400530608 | M93: 1.400530608 | N93: -0.6628452341 | O93: 0
B94: t8 | C94: 18.2 | D94: -35.12177376 | E94: -4.535266401 | H94: t8 | I94: 9.1 | J94: 131.1179828 | K94: 1.334246085 | M94: 1.334246085 | N94: -0.6314739951 | O94: 0
B95: =L8 ->  | C95: 18.4 | D95: -36.02882704 | E95: -4.415176983 | H95: =S8 -> 0 | I95: 9.2 | J95: 130.0817547 | K95: 1.271098685 | M95: 1.271098685 | N95: -0.6015874988 | O95: 0
C96: 18.6 | D96: -36.91186244 | E96: -4.292144277 | I96: 9.3 | J96: 129.0434278 | K96: 1.210939935 | M96: 1.210939935 | N96: -0.5731154751 | O96: 0
C97: 18.8 | D97: -37.77029129 | E97: -4.1662503 | I97: 9.4 | J97: 128.0033636 | K97: 1.153628388 | M97: 1.153628388 | N97: -0.5459909797 | O97: 0
C98: 19 | D98: -38.60354135 | E98: -4.037578978 | I98: 9.5 | J98: 126.9619121 | K98: 1.09902929 | M98: 1.09902929 | N98: -0.5201502364 | O98: 0
C99: 19.2 | D99: -39.41105715 | E99: -3.906216086 | I99: 9.6 | J99: 125.9194119 | K99: 1.047014266 | M99: 1.047014266 | N99: -0.4955324877 | O99: 0
C100: 19.4 | D100: -40.19230037 | E100: -3.772249194 | I100: 9.7 | J100: 124.8761908 | K100: 0.9974610175 | M100: 0.9974610175 | N100: -0.4720798516 | O100: 0
C101: 19.6 | D101: -40.9467502 | E101: -3.635767609 | I101: 9.8 | J101: 123.8325658 | K101: 0.9502530324 | M101: 0.9502530324 | N101: -0.4497371853 | O101: 0
C102: 19.8 | D102: -41.67390373 | E102: -3.496862314 | I102: 9.9 | J102: 122.7888435 | K102: 0.9052793139 | M102: 0.9052793139 | N102: -0.4284519561 | O102: 0
C103: 20 | D103: -42.37327619 | E103: -3.355625907 | I103: 10 | J103: 121.7453205 | K103: 0.8624341182 | M103: 0.8624341182 | N103: -0.4081741175 | O103: 0
C104: 20.2 | D104: -43.04440137 | E104: -3.21215254 | I104: 10.1 | J104: 120.7022831 | K104: 0.8216167065 | M104: 0.8216167065 | N104: -0.3888559914 | O104: 0
C105: 20.4 | D105: -43.68683188 | E105: -3.066537857 | I105: 10.2 | J105: 119.6600083 | K105: 0.7827311074 | M105: 0.7827311074 | N105: -0.3704521565 | O105: 0
C106: 20.6 | D106: -44.30013945 | E106: -2.918878929 | I106: 10.3 | J106: 118.6187636 | K106: 0.7456858917 | M106: 0.7456858917 | N106: -0.3529193411 | O106: 0
C107: 20.8 | D107: -44.88391524 | E107: -2.76927419 | I107: 10.4 | J107: 117.5788072 | K107: 0.7103939576 | M107: 0.7103939576 | N107: -0.3362163214 | O107: 0
C108: 21 | D108: -45.43777007 | E108: -2.61782337 | I108: 10.5 | J108: 116.5403884 | K108: 0.6767723255 | M108: 0.6767723255 | N108: -0.3203038247 | O108: 0
C109: 21.2 | D109: -45.96133475 | E109: -2.464627432 | I109: 10.6 | J109: 115.5037479 | K109: 0.644741943 | M109: 0.644741943 | N109: -0.3051444371 | O109: 0
C110: 21.4 | D110: -46.45426023 | E110: -2.309788501 | I110: 10.7 | J110: 114.4691179 | K110: 0.6142274993 | M110: 0.6142274993 | N110: -0.2907025153 | O110: 0
C111: 21.6 | D111: -46.91621793 | E111: -2.153409796 | I111: 10.8 | J111: 113.436722 | K111: 0.5851572477 | M111: 0.5851572477 | N111: -0.2769441029 | O111: 0
C112: 21.8 | D112: -47.34689989 | E112: -1.995595564 | I112: 10.9 | J112: 112.4067761 | K112: 0.5574628375 | M112: 0.5574628375 | N112: -0.2638368507 | O112: 0
C113: 22 | D113: -47.74601901 | E113: -1.836451009 | I113: 11 | J113: 111.3794881 | K113: 0.5310791524 | M113: 0.5310791524 | N113: -0.2513499405 | O113: 0
C114: 22.2 | D114: -48.11330921 | E114: -1.676082221 | I114: 11.1 | J114: 110.3550583 | K114: 0.5059441583 | M114: 0.5059441583 | N114: -0.2394540127 | O114: 0
C115: 22.4 | D115: -48.44852565 | E115: -1.514596107 | I115: 11.2 | J115: 109.3336793 | K115: 0.4819987571 | M115: 0.4819987571 | N115: -0.2281210972 | O115: 0
C116: 22.6 | D116: -48.75144487 | E116: -1.352100319 | I116: 11.3 | J116: 108.3155368 | K116: 0.4591866473 | M116: 0.4591866473 | N116: -0.2173245475 | O116: 0
C117: 22.8 | D117: -49.02186494 | E117: -1.18870318 | I117: 11.4 | J117: 107.3008092 | K117: 0.4374541926 | M117: 0.4374541926 | N117: -0.2070389786 | O117: 0
C118: 23 | D118: -49.25960557 | E118: -1.024513617 | I118: 11.5 | J118: 106.2896681 | K118: 0.4167502947 | M118: 0.4167502947 | N118: -0.1972402067 | O118: 0
C119: 23.2 | D119: -49.4645083 | E119: -0.8596410825 | I119: 11.6 | J119: 105.2822782 | K119: 0.3970262741 | M119: 0.3970262741 | N119: -0.1879051925 | O119: 0
C120: 23.4 | D120: -49.63643651 | E120: -0.6941954859 | I120: 11.7 | J120: 104.278798 | K120: 0.3782357548 | M120: 0.3782357548 | N120: -0.1790119873 | O120: 0
C121: 23.6 | D121: -49.77527561 | E121: -0.528287118 | I121: 11.8 | J121: 103.2793793 | K121: 0.3603345561 | M121: 0.3603345561 | N121: -0.170539681 | O121: 0
C122: 23.8 | D122: -49.88093303 | E122: -0.3620265782 | I122: 11.9 | J122: 102.2841679 | K122: 0.343280588 | M122: 0.343280588 | N122: -0.1624683533 | O122: 0
C123: 24 | D123: -49.95333835 | E123: -0.1955247008 | I123: 12 | J123: 101.2933035 | K123: 0.3270337526 | M123: 0.3270337526 | N123: -0.1547790266 | O123: 0
C124: 24.2 | D124: -49.99244329 | E124: -0.0288924808 | I124: 12.1 | J124: 100.3069201 | K124: 0.31155585 | M124: 0.31155585 | N124: -0.1474536216 | O124: 0
C125: 24.4 | D125: -49.99822179 | E125: 0.1377589998 | I125: 12.2 | J125: 99.32514567 | K125: 0.2968104878 | M125: 0.2968104878 | N125: -0.1404749144 | O125: 0
C126: 24.6 | D126: -49.97066999 | E126: 0.3043186461 | I126: 12.3 | J126: 98.34810295 | K126: 0.2827629964 | M126: 0.2827629964 | N126: -0.1338264965 | O126: 0
C127: 24.8 | D127: -49.90980626 | E127: 0.4706754246 | I127: 12.4 | J127: 97.37590909 | K127: 0.2693803467 | M127: 0.2693803467 | N127: -0.1274927359 | O127: 0
C128: 25 | D128: -49.81567117 | E128: 0.6367184369 | I128: 12.5 | J128: 96.40867603 | K128: 0.2566310731 | M128: 0.2566310731 | N128: -0.1214587405 | O128: 0
C129: 25.2 | D129: -49.68832748 | E129: 0.8023369939 | I129: 12.6 | J129: 95.44651059 | K129: 0.2444851991 | M129: 0.2444851991 | N129: -0.115710323 | O129: 0
C130: 25.4 | D130: -49.52786009 | E130: 0.9674206892 | I130: 12.7 | J130: 94.48951463 | K130: 0.2329141668 | M130: 0.2329141668 | N130: -0.1102339674 | O130: 0
C131: 25.6 | D131: =y0*COS(SQRT(k/m)*t) -> -49.33437595 | E131: =(D132-D131)/dq -> 1.131859473 | I131: 12.8 | J131: =(H$27+H$28*tt)*EXP(-omega0*tt) -> 93.53778515 | K131: =H$31*EXP(gamma2*tt)+H$32*EXP(gamma2*tt) -> 0.2218907701 | L131: =EXP(-cc/2/mm*tt)*(H$36*COS(SQRT(-Disc)/2/mm*tt)+H$37*SIN(SQRT(-Disc)/2/mm*tt)) ->  | M131: =IF(case=1,J131,IF(case=2,K131,L131)) -> 0.2218907701 | N131: =(M132-M131)/dqq -> -0.1050167976 | O131: 0
C132: =C131+dt -> 25.8 | D132: -49.10800405 | E132: 1.295543726 | I132: =I131+dtt -> 12.9 | J132: 92.59141446 | K132: 0.2113890903 | M132: 0.2113890903 | N132: -0.1000465468 | O132: 0
C133: 26 | D133: -48.84889531 | E133: 1.458364331 | I133: 13 | J133: 91.65049031 | K133: 0.2013844356 | M133: 0.2013844356 | N133: -0.09531152877 | O133: 0
C134: 26.2 | D134: -48.55722244 | E134: 1.620212748 | I134: 13.1 | J134: 90.71509596 | K134: 0.1918532827 | M134: 0.1918532827 | N134: -0.09080061039 | O134: 0
C135: 26.4 | D135: -48.23317989 | E135: 1.780981082 | I135: 13.2 | J135: 89.7853104 | K135: 0.1827732217 | M135: 0.1827732217 | N135: -0.08650318544 | O135: 0
C136: 26.6 | D136: -47.87698368 | E136: 1.940562162 | I136: 13.3 | J136: 88.86120837 | K136: 0.1741229031 | M136: 0.1741229031 | N136: -0.08240914966 | O136: 0
C137: 26.8 | D137: -47.48887124 | E137: 2.098849605 | I137: 13.4 | J137: 87.94286058 | K137: 0.1658819882 | M137: 0.1658819882 | N137: -0.07850887702 | O137: 0
C138: 27 | D138: -47.06910132 | E138: 2.255737893 | I138: 13.5 | J138: 87.03033372 | K138: 0.1580311005 | M138: 0.1580311005 | N138: -0.07479319708 | O138: 0
C139: 27.2 | D139: -46.61795374 | E139: 2.41112244 | I139: 13.6 | J139: 86.12369068 | K139: 0.1505517808 | M139: 0.1505517808 | N139: -0.07125337339 | O139: 0
C140: 27.4 | D140: -46.13572926 | E140: 2.56489966 | I140: 13.7 | J140: 85.22299056 | K140: 0.1434264434 | M140: 0.1434264434 | N140: -0.06788108301 | O140: 0
C141: 27.6 | D141: -45.62274932 | E141: 2.716967043 | I141: 13.8 | J141: 84.32828885 | K141: 0.1366383351 | M141: 0.1366383351 | N141: -0.0646683969 | O141: 0
C142: 27.8 | D142: -45.07935591 | E142: 2.867223215 | I142: 13.9 | J142: 83.43963751 | K142: 0.1301714954 | M142: 0.1301714954 | N142: -0.06160776127 | O142: 0
C143: 28 | D143: -44.50591127 | E143: 3.015568011 | I143: 14 | J143: 82.55708506 | K143: 0.1240107193 | M143: 0.1240107193 | N143: -0.05869197988 | O143: 0
C144: 28.2 | D144: -43.90279767 | E144: 3.16190254 | I144: 14.1 | J144: 81.68067672 | K144: 0.1181415213 | M144: 0.1181415213 | N144: -0.05591419702 | O144: 0
C145: 28.4 | D145: -43.27041716 | E145: 3.306129251 | I145: 14.2 | J145: 80.81045446 | K145: 0.1125501016 | M145: 0.1125501016 | N145: -0.05326788149 | O145: 0
C146: 28.6 | D146: -42.60919131 | E146: 3.448151998 | I146: 14.3 | J146: 79.94645711 | K146: 0.1072233135 | M146: 0.1072233135 | N146: -0.05074681118 | O146: 0
C147: 28.8 | D147: -41.91956091 | E147: 3.587876105 | I147: 14.4 | J147: 79.08872049 | K147: 0.1021486324 | M147: 0.1021486324 | N147: -0.04834505846 | O147: 0
C148: 29 | D148: -41.20198569 | E148: 3.725208427 | I148: 14.5 | J148: 78.23727743 | K148: 0.09731412652 | M148: 0.09731412652 | N148: -0.04605697626 | O148: 0
C149: 29.2 | D149: -40.45694401 | E149: 3.860057416 | I149: 14.6 | J149: 77.39215793 | K149: 0.09270842889 | M149: 0.09270842889 | N149: -0.04387718475 | O149: 0
C150: 29.4 | D150: -39.68493252 | E150: 3.992333175 | I150: 14.7 | J150: 76.55338922 | K150: 0.08832071041 | M150: 0.08832071041 | N150: -0.04180055875 | O150: 0
C151: 29.6 | D151: -38.88646589 | E151: 4.121947527 | I151: 14.8 | J151: 75.72099582 | K151: 0.08414065454 | M151: 0.08414065454 | N151: -0.03982221561 | O151: 0
C152: 29.8 | D152: -38.06207638 | E152: 4.248814067 | I152: 14.9 | J152: 74.89499966 | K152: 0.08015843298 | M152: 0.08015843298 | N152: -0.0379375038 | O152: 0
C153: 30 | D153: -37.21231357 | E153: 4.372848221 | I153: 15 | J153: 74.07542013 | K153: 0.0763646826 | M153: 0.0763646826 | N153: -0.03614199191 | O153: 0
C154: 30.2 | D154: -36.33774392 | E154: 4.493967305 | I154: 15.1 | J154: 73.26227418 | K154: 0.07275048341 | M154: 0.07275048341 | N154: -0.03443145828 | O154: 0
C155: 30.4 | D155: -35.43895046 | E155: 4.612090577 | I155: 15.2 | J155: 72.45557639 | K155: 0.06930733758 | M155: 0.06930733758 | N155: -0.03280188104 | O155: 0
C156: 30.6 | D156: -34.51653235 | E156: 4.727139293 | I156: 15.3 | J156: 71.65533905 | K156: 0.06602714948 | M156: 0.06602714948 | N156: -0.03124942868 | O156: 0
C157: 30.8 | D157: -33.57110449 | E157: 4.839036758 | I157: 15.4 | J157: 70.86157222 | K157: 0.06290220661 | M157: 0.06290220661 | N157: -0.02977045101 | O157: 0
C158: 31 | D158: -32.60329714 | E158: 4.947708378 | I158: 15.5 | J158: 70.0742838 | K158: 0.05992516151 | M158: 0.05992516151 | N158: -0.02836147063 | O158: 0
C159: 31.2 | D159: -31.61375546 | E159: 5.053081708 | I159: 15.6 | J159: 69.29347962 | K159: 0.05708901444 | M159: 0.05708901444 | N159: -0.02701917468 | O159: 0
C160: 31.4 | D160: -30.60313912 | E160: 5.155086505 | I160: 15.7 | J160: 68.51916348 | K160: 0.05438709698 | M160: 0.05438709698 | N160: -0.02574040711 | O160: 0
C161: 31.6 | D161: -29.57212182 | E161: 5.253654768 | I161: 15.8 | J161: 67.75133725 | K161: 0.05181305627 | M161: 0.05181305627 | N161: -0.02452216125 | O161: 0
C162: 31.8 | D162: -28.52139087 | E162: 5.348720789 | I162: 15.9 | J162: 66.99000091 | K162: 0.04936084014 | M162: 0.04936084014 | N162: -0.02336157271 | O162: 0
C163: 32 | D163: -27.45164671 | E163: 5.440221195 | I163: 16 | J163: 66.2351526 | K163: 0.04702468287 | M163: 0.04702468287 | N163: -0.02225591268 | O163: 0
C164: 32.2 | D164: -26.36360247 | E164: 5.528094988 | I164: 16.1 | J164: 65.48678871 | K164: 0.0447990916 | M164: 0.0447990916 | N164: -0.0212025815 | O164: 0
C165: 32.4 | D165: -25.25798347 | E165: 5.612283589 | I165: 16.2 | J165: 64.74490395 | K165: 0.04267883345 | M165: 0.04267883345 | N165: -0.02019910253 | O165: 0
C166: 32.6 | D166: -24.13552675 | E166: 5.692730875 | I166: 16.3 | J166: 64.00949135 | K166: 0.0406589232 | M166: 0.0406589232 | N166: -0.01924311636 | O166: 0
C167: 32.8 | D167: -22.99698058 | E167: 5.769383218 | I167: 16.4 | J167: 63.28054237 | K167: 0.03873461156 | M167: 0.03873461156 | N167: -0.01833237526 | O167: 0
C168: 33 | D168: -21.84310394 | E168: 5.84218952 | I168: 16.5 | J168: 62.55804694 | K168: 0.03690137404 | M168: 0.03690137404 | N168: -0.01746473784 | O168: 0
C169: 33.2 | D169: -20.67466603 | E169: 5.911101245 | I169: 16.6 | J169: 61.8419935 | K169: 0.03515490025 | M169: 0.03515490025 | N169: -0.0166381641 | O169: 0
C170: 33.4 | D170: -19.49244578 | E170: 5.976072454 | I170: 16.7 | J170: 61.13236909 | K170: 0.03349108384 | M170: 0.03349108384 | N170: -0.01585071057 | O170: 0
C171: 33.6 | D171: -18.29723129 | E171: 6.037059837 | I171: 16.8 | J171: 60.42915935 | K171: 0.03190601279 | M171: 0.03190601279 | N171: -0.01510052575 | O171: 0
C172: 33.8 | D172: -17.08981932 | E172: 6.094022737 | I172: 16.9 | J172: 59.7323486 | K172: 0.03039596021 | M172: 0.03039596021 | N172: -0.0143858458 | O172: 0
C173: 34 | D173: -15.87101478 | E173: 6.14692318 | I173: 17 | J173: 59.0419199 | K173: 0.02895737563 | M173: 0.02895737563 | N173: -0.01370499032 | O173: 0
C174: 34.2 | D174: -14.64163014 | E174: 6.195725903 | I174: 17.1 | J174: 58.35785504 | K174: 0.0275868766 | M174: 0.0275868766 | N174: -0.01305635848 | O174: 0
C175: 34.4 | D175: -13.40248496 | E175: 6.240398371 | I175: 17.2 | J175: 57.68013468 | K175: 0.02628124075 | M175: 0.02628124075 | N175: -0.01243842518 | O175: 0
C176: 34.6 | D176: -12.15440529 | E176: 6.280910804 | I176: 17.3 | J176: 57.00873831 | K176: 0.02503739823 | M176: 0.02503739823 | N176: -0.01184973752 | O176: 0
C177: 34.8 | D177: -10.89822313 | E177: 6.317236197 | I177: 17.4 | J177: 56.34364432 | K177: 0.02385242448 | M177: 0.02385242448 | N177: -0.01128891136 | O177: 0
C178: 35 | D178: -9.634775886 | E178: 6.349350332 | I178: 17.5 | J178: 55.68483007 | K178: 0.02272353335 | M178: 0.02272353335 | N178: -0.01075462806 | O178: 0
C179: 35.2 | D179: -8.36490582 | E179: 6.377231802 | I179: 17.6 | J179: 55.03227189 | K179: 0.02164807054 | M179: 0.02164807054 | N179: -0.01024563141 | O179: 0
C180: 35.4 | D180: -7.089459459 | E180: 6.400862021 | I180: 17.7 | J180: 54.38594515 | K180: 0.0206235074 | M180: 0.0206235074 | N180: -0.009760724621 | O180: 0
C181: 35.6 | D181: -5.809287055 | E181: 6.420225235 | I181: 17.8 | J181: 53.74582428 | K181: 0.01964743494 | M181: 0.01964743494 | N181: -0.009298767577 | O181: 0
C182: 35.8 | D182: -4.525242008 | E182: 6.435308537 | I182: 17.9 | J182: 53.11188281 | K182: 0.01871755818 | M182: 0.01871755818 | N182: -0.008858674106 | O182: 0
C183: 36 | D183: -3.2381803 | E183: 6.446101872 | I183: 18 | J183: 52.48409345 | K183: 0.01783169077 | M183: 0.01783169077 | N183: -0.008439409444 | O183: 0
C184: 36.2 | D184: -1.948959926 | E184: 6.452598044 | I184: 18.1 | J184: 51.86242804 | K184: 0.01698774982 | M184: 0.01698774982 | N184: -0.008039987804 | O184: 0
C185: 36.4 | D185: -0.658440317 | E185: 6.454792723 | I185: 18.2 | J185: 51.24685767 | K185: 0.01618375104 | M185: 0.01618375104 | N185: -0.007659470051 | O185: 0
C186: 36.6 | D186: 0.6325182277 | E186: 6.452684447 | I186: 18.3 | J186: 50.63735267 | K186: 0.01541780404 | M186: 0.01541780404 | N186: -0.0072969615 | O186: 0
C187: 36.8 | D187: 1.923055117 | E187: 6.446274619 | I187: 18.4 | J187: 50.03388264 | K187: 0.01468810789 | M187: 0.01468810789 | N187: -0.006951609808 | O187: 0
C188: 37 | D188: 3.212310041 | E188: 6.435567514 | I188: 18.5 | J188: 49.43641651 | K188: 0.01399294691 | M188: 0.01399294691 | N188: -0.006622602973 | O188: 0
C189: 37.2 | D189: 4.499423544 | E189: 6.420570268 | I189: 18.6 | J189: 48.84492255 | K189: 0.01333068661 | M189: 0.01333068661 | N189: -0.006309167422 | O189: 0
C190: 37.4 | D190: 5.783537597 | E190: 6.401292881 | I190: 18.7 | J190: 48.25936841 | K190: 0.01269976987 | M190: 0.01269976987 | N190: -0.006010566197 | O190: 0
C191: 37.6 | D191: 7.063796173 | E191: 6.377748202 | I191: 18.8 | J191: 47.67972114 | K191: 0.01209871325 | M191: 0.01209871325 | N191: -0.005726097215 | O191: 0
C192: 37.8 | D192: 8.339345814 | E192: 6.349951926 | I192: 18.9 | J192: 47.10594724 | K192: 0.01152610353 | M192: 0.01152610353 | N192: -0.005455091625 | O192: 0
C193: 38 | D193: 9.609336199 | E193: 6.317922585 | I193: 19 | J193: 46.53801265 | K193: 0.01098059437 | M193: 0.01098059437 | N193: -0.005196912227 | O193: 0
C194: 38.2 | D194: 10.87292072 | E194: 6.28168153 | I194: 19.1 | J194: 45.97588283 | K194: 0.01046090314 | M194: 0.01046090314 | N194: -0.004950951983 | O194: 0
C195: 38.4 | D195: =y0*COS(SQRT(k/m)*t) -> 12.12925702 | E195: =(D196-D195)/dq -> 6.241252919 | I195: 19.2 | J195: =(H$27+H$28*tt)*EXP(-omega0*tt) -> 45.41952273 | K195: =H$31*EXP(gamma2*tt)+H$32*EXP(gamma2*tt) -> 0.009965807944 | L195: =EXP(-cc/2/mm*tt)*(H$36*COS(SQRT(-Disc)/2/mm*tt)+H$37*SIN(SQRT(-Disc)/2/mm*tt)) ->  | M195: =IF(case=1,J195,IF(case=2,K195,L195)) -> 0.009965807944 | N195: =(M196-M195)/dqq -> -0.004716632583 | O195: 0
C196: =C195+dt -> 38.6 | D196: 13.37750761 | E196: 6.196663704 | I196: =I195+dtt -> 19.3 | J196: 44.86889687 | K196: 0.009494144686 | M196: 0.009494144686 | N196: -0.004493403086 | O196: 0
C197: 38.8 | D197: 14.61684035 | E197: 6.14794361 | I197: 19.4 | J197: 44.32396932 | K197: 0.009044804378 | M197: 0.009044804378 | N197: -0.004280738628 | O197: 0
C198: 39 | D198: 15.84642907 | E198: 6.095125114 | I198: 19.5 | J198: 43.78470375 | K198: 0.008616730515 | M198: 0.008616730515 | N198: -0.004078139186 | O198: 0
C199: 39.2 | D199: 17.06545409 | E199: 6.038243427 | I199: 19.6 | J199: 43.25106344 | K199: 0.008208916596 | M199: 0.008208916596 | N199: -0.003885128401 | O199: 0
C200: 39.4 | D200: 18.27310278 | E200: 5.977336469 | I200: 19.7 | J200: 42.72301133 | K200: 0.007820403756 | M200: 0.007820403756 | N200: -0.003701252459 | O200: 0
C201: 39.6 | D201: 19.46857007 | E201: 5.91244484 | I201: 19.8 | J201: 42.20051 | K201: 0.00745027851 | M201: 0.00745027851 | N201: -0.003526079026 | O201: 0
... 402 more rows
